Cogmind - Beta 12 @@@ ROGUE MODE // 2023.04.16 @ 21:43:28 Player: dhtilly Result: Destroyed by QZ-926(B) with Slug Cannon Performance ------------- Evolutions (4) 2000 Regions Visited (12) 2400 Robots Destroyed (206) 1030 Value Destroyed (7421) 7421 Prototype IDs (37) 740 Alien Tech Used (1) 200 Bonus (2613) 2613 TOTAL SCORE: 16404 Bonus ------- High Alert Combat Kills 1367 Follower Combat Kills 955 Entered Garrisons 200 Used RIF Installer 500 Aligned with FarCom 300 Friendly Fire -709 Cogmind --------- Core Integrity 0/850 Matter 300/300 Energy 239/241 System Corruption 0% Temperature Cool (0) Movement Rolling (155) Ox5 Location -6/Zion Parts ------- > --- POWER (1) -------- Deuterium-Neutrino Engine > --- PROPULSION (4) --- Treaded Armored Exoskeleton Wheel Wheel > --- UTILITY (6) ------ Armored Scrap Engine Improved Heat Sink Huge Storage Unit Advanced Targeting Computer Advanced Targeting Computer > --- WEAPON (4) ------- Flak Gun Advanced Assault Cannon Heavy Flak Cannon Shotgun Laser Gauss Construct/C > --- INVENTORY (25) --- Light Angular Momentum Engine Improved Heat Sink Energy Well (350) Energy Well (350) Matter Compressor (250) 0b10 Decoder Chip [Skirmisher] Transmission Jammer Improved Light Armor Plating Advanced Shield Generator System Shield Improved System Shield Authchip [Armor] Relay Coupler [NC] (25) Long-range Tractor Beam Decoy Drone Bay Advanced Assault Cannon Advanced Assault Cannon Improved Proton Missile Launcher Long-range Missile Launcher Scatter Rocket Array Improved Remote Datajack Improved Remote Datajack Chainsword Signal Generator Peak State ------------ > --- POWER ------------ Neutrino Core > --- PROPULSION ------- Light Treads Armored Treads Medium Treads Improved Medium Treads > --- UTILITY ---------- Scrap Engine Huge Storage Unit Advanced Targeting Computer Relay Coupler [Sentry] System Restoration Module > --- WEAPON ----------- Improved Heavy Machine Gun Improved Remote Datajack Shotgun Laser Gauss Construct/C Chainsword > --- INVENTORY -------- Deuterium Engine Light Treads Medium Treads Medium Treads Armored Wheel Improved Heat Sink Energy Well Matter Compressor Advanced Targeting Computer Hardened Medium Armor Plating Hardened Heavy Armor Plating Advanced Shield Generator System Shield Authchip [Armor] Authchip [Armor] Relay Coupler [NC] Long-range Tractor Beam Decoy Drone Bay Magnetic Acceleration Cannon Missile Launcher Scatter Rocket Array Improved Remote Datajack Signal Generator [Rating: 78] Favorites ----------- Power Neutrino Core Engine Ion Engine Power Core Neutrino Core Reactor Light Antimatter Reactor Propulsion Wheel Treads Light Treads Leg Aluminum Leg Wheel Wheel Utility Huge Storage Unit Device Seismic Detector Storage Huge Storage Unit Processor Improved Targeting Computer Hackware Relay Coupler [Sentry] Protection Hardened Medium Armor Plating Weapon Improved Assault Rifle Energy Gun Advanced Beam Rifle Energy Cannon Constructs Ballistic Gun Improved Assault Rifle Ballistic Cannon Heavy Flak Cannon Launcher Rocket Launcher Special Weapon Improved Remote Datajack Slashing Weapon Chainsword Build | -11 -10 -10 -10 -9 -8 -8 -8 -8 -6 -6 -6 -6 ------- Run | Jun Mat Min Exi Min Mat Sto Gar Rec Fac Low Low Zio Slots Evolved 8 | . . . . . 4 . . . 4 . . . Power . | . . . . . . . . . . . . . Propulsion 2 | . . . . . 2 . . . . . . . Utility 4 | . . . . . 1 . . . 3 . . . Weapon 2 | . . . . . 1 . . . 1 . . . Parts Attached 197 | 6 14 9 3 2 49 22 35 7 37 5 8 . Power 18 | 1 2 . . . 5 2 7 . 1 . . . Engine 9 | 1 2 . . . 4 1 1 . . . . . Core 8 | . . . . . 1 1 6 . . . . . Reactor 1 | . . . . . . . . . 1 . . . Propulsion 53 | 2 3 4 . . 17 . 12 2 12 . 1 . Treads 19 | . . . . . 9 . 6 2 2 . . . Leg 10 | 2 3 . . . . . 5 . . . . . Wheel 24 | . . 4 . . 8 . 1 . 10 . 1 . Hover . | . . . . . . . . . . . . . Flight . | . . . . . . . . . . . . . Utility 39 | 1 7 2 3 . 3 4 4 2 9 3 1 . Device 15 | . 5 1 . . 1 2 1 . 2 3 . . Storage 7 | 1 2 1 3 . . . . . . . . . Processor 5 | . . . . . 1 . . 1 2 . 1 . Hackware 2 | . . . . . . . . 1 1 . . . Protection 10 | . . . . . 1 2 3 . 4 . . . Artifact . | . . . . . . . . . . . . . Weapon 87 | 2 2 3 . 2 24 16 12 3 15 2 6 . Energy Gun 7 | . . . . . 2 1 4 . . . . . Energy Cannon 2 | . . . . . 1 . . 1 . . . . Ballistic Gun 39 | 2 2 1 . 1 17 11 1 . 1 . 3 . Ballistic Cannon 6 | . . . . . . . . . 5 1 . . Launcher 19 | . . 2 . 1 2 3 4 . 6 1 . . Special Weapon 2 | . . . . . . . 1 1 . . . . Impact Weapon . | . . . . . . . . . . . . . Slashing Weapon 12 | . . . . . 2 1 2 1 3 . 3 . Piercing Weapon . | . . . . . . . . . . . . . Special Melee Weapon . | . . . . . . . . . . . . . Unidentified Prototypes 11 | . 1 . . . 5 2 . . 2 1 . . Parts Lost 36 | . 2 . . . 5 1 11 . 16 . . 1 Power 5 | . 1 . . . 1 . 1 . 2 . . . Propulsion 15 | . . . . . 2 . 5 . 7 . . 1 Utility 7 | . 1 . . . 1 . 2 . 3 . . . Weapon 9 | . . . . . 1 1 3 . 4 . . . Highest Loss Streak 7 | . 1 . . . 2 1 2 . 7 . . 1 To Critical Strikes . | . . . . . . . . . . . . . Average Slot Usage (%) 91 | . 98 99 100 100 93 80 87 100 82 92 92 91 Engine 5 | . 14 14 14 14 8 6 . . . 2 6 6 Core 3 | . . . . . . 2 8 9 4 1 . . Treads 12 | . . . . . 14 . 17 36 19 6 6 6 Leg 4 | . 28 13 . . . . 7 . . . . . Wheel 10 | . . 14 28 28 18 18 2 . 4 20 19 18 Device 7 | . 12 13 14 14 4 6 3 . 9 12 13 13 Storage 9 | . 14 14 14 14 9 9 9 9 6 6 6 6 Processor 7 | . . . . . 8 9 9 9 6 13 13 13 Hackware 1 | . . . . . . . . 8 4 . . . Protection 1 | . . . . . 1 1 3 . 1 . . . Energy Gun 1 | . . . . . . . 5 . . 1 . . Energy Cannon 1 | . . . . . . . . 6 4 . 3 6 Ballistic Gun 15 | . 28 16 28 27 26 26 15 9 5 6 4 6 Ballistic Cannon 2 | . . . . . . . . . 2 17 15 13 Special Weapon 2 | . . . . . . . 2 9 3 . . . Slashing Weapon 1 | . . . . . . . 1 2 2 . 2 . Naked Turns . | . . . . . . . . . . . . . Heaviest Build 129 | 11 30 33 92 92 104 109 113 118 129 120 118 118 Greatest Support 104 | 20 26 26 20 20 56 56 90 90 104 30 30 30 Greatest Overweight (x) 29 | 1 1 3 4 4 10 1 4 1 29 3 5 5 Average Overweight (x) 1 | . . . 2 4 2 1 1 1 1 3 3 3 Largest Inventory Capacity 25 | 8 15 15 25 25 25 25 25 25 25 25 25 25 Average Capacity 22 | 6 9 12 22 25 25 25 25 25 25 25 25 25 Most Carried 25 | 4 10 15 19 22 25 25 25 25 25 25 25 25 Average Carried 21 | 2 8 12 17 20 24 24 24 24 21 24 24 25 Final Capacity 25 | 8 10 15 25 25 25 25 25 25 25 25 25 25 Final Carried 25 | 4 9 15 19 22 25 25 25 25 23 25 25 25 Scrap Engine Consumption 47 | . . . . . . . . . 30 9 8 . Constructs Created 6 | . . . . . . . . . 6 . . . Constructs Modified 10 | . . . . . . . . . 1 6 3 . Class Distribution -------------------- 30% | Mutant 17% | Scavenger-Mutant 16% | Commander-Mutant 15% | Scavenger-Skirmisher 8% | Gunner 7% | Skirmisher Dominant Class ---------------- Mutant | -10/Materials Mutant | -10/Mines Mutant | -10/Exiles Mutant | -9/Mines Scavenger-Skirmisher | -8/Materials Skirmisher | -8/Storage Scavenger-Mutant | -8/Garrison Commander-Mutant | -8/Recycling Commander-Mutant | -6/Factory Gunner | -6/Lower Caves Gunner | -6/Lower Caves Gunner | -6/Zion Resources | -11 -10 -10 -10 -9 -8 -8 -8 -8 -6 -6 -6 -6 ----------- Run | Jun Mat Min Exi Min Mat Sto Gar Rec Fac Low Low Zio Matter Collected 7465 | 199 644 325 . 116 1547 808 1100 456 1347 640 283 . Remotely 176 | . 176 . . . . . . . . . . . Salvage Created 8766 | . 626 132 . 47 1929 1403 1249 97 2610 226 447 . Parts 447 | . 48 11 . 8 123 66 52 6 123 7 3 . Haulers Intercepted 14 | . 2 . . . 5 5 . . 2 . . . Recyclers Shooed 11 | . . . . . 1 1 . 1 8 . . . Parts Field Recycled . | . . . . . . . . . . . . . Retrieved Matter . | . . . . . . . . . . . . . Parts Self-Destructed 17 | . . . . . . . . . . 17 . . Prevented . | . . . . . . . . . . . . . Kills | -11 -10 -10 -10 -9 -8 -8 -8 -8 -6 -6 -6 -6 ------- Run | Jun Mat Min Exi Min Mat Sto Gar Rec Fac Low Low Zio Combat Hostiles Destroyed 152 | . 13 14 . 3 30 18 32 1 33 6 2 . Melee 5 | . . . . . . . . . 5 . . . Guns 85 | . 13 5 . . 26 13 19 1 6 1 1 . Cannons 16 | . . . . . . . . . 13 2 1 . AOE 45 | . . 9 . 3 4 4 13 . 9 3 . . Classes Destroyed 24 | . 4 3 . . 5 4 2 . 4 1 1 . Worker 15 | . . 1 . 1 1 2 . . 10 . . . Builder 9 | . . 1 . . 2 1 . . 5 . . . Tunneler 1 | . . . . . 1 . . . . . . . Hauler 14 | . 2 . . . 5 5 . . 2 . . . Recycler 14 | . . . . . 3 2 . . 9 . . . Mechanic 2 | . . . . . . 2 . . . . . . Operator 3 | . . . . . 3 . . . . . . . Watcher 4 | . 2 . . . 2 . . . . . . . Swarmer 27 | . 3 3 . 3 4 . 7 . 4 3 . . Saboteur 1 | . . . . . . . . . 1 . . . Grunt 72 | . 10 . . 1 17 11 21 . 11 . 1 . Brawler 2 | . . . . . . . 1 . . 1 . . Duelist 5 | . . . . . . 3 . . 1 1 . . Protector 1 | . . . . . . 1 . . . . . . Sentry 17 | . . . . . 8 4 2 . 2 1 . . Demolisher 3 | . . . . . . 1 . 1 1 . . . Specialist 2 | . . . . . . . . . 2 . . . Hunter 7 | . . . . . 1 . . . 6 . . . Programmer 4 | . . . . . . . . . 4 . . . Heavy 2 | . . . . . . . . . 2 . . . Behemoth 1 | . . . . . . . 1 . . . . . Packrat 2 | . . . . . . . . . . . 2 . Samaritan 4 | . . . . . . . . . . 1 3 . Assembled 11 | . . 11 . . . . . . . . . . Mutant 1 | . . . . . . . . . . . 1 . Best Kill Streak 19 | . 3 3 . 4 7 7 7 1 19 3 1 . Combat Bots Only 8 | . 3 3 . 3 4 6 7 1 8 3 1 . Max Kills in Single Turn 12 | . 1 2 . 4 2 3 3 1 12 3 1 . Gunslinging . | . . . . . . . . . . . . . Exploded 4 | . . 2 . 3 2 1 3 . 4 3 . . Melee 1 | . . . . . . . . . 1 . . . Uniques/NPCs Destroyed . | . . . . . . . . . . . . . Combat | -11 -10 -10 -10 -9 -8 -8 -8 -8 -6 -6 -6 -6 -------- Run | Jun Mat Min Exi Min Mat Sto Gar Rec Fac Low Low Zio Damage Taken 9033 | . 403 303 . 34 1456 1165 1152 149 3877 79 235 180 Core 1427 | . 119 63 . 26 107 134 115 . 764 . 62 37 Absorbed by Shields . | . . . . . . . . . . . . . Regen/Repaired (Parts) 477 | . . . . . . 16 . . 200 222 39 . Core Remaining (%) 50 | 100 . . . 16 . . . 35 . . . . Volleys Fired 543 | . 56 31 . 2 103 60 116 55 97 13 10 . Largest 4 | . 2 2 . 1 3 3 3 2 4 4 4 . Hottest 190 | . 46 46 . 33 82 95 105 80 190 190 170 . Shots Fired 1131 | . 112 38 . 2 300 147 240 58 172 33 29 . Gun 867 | . 112 18 . . 295 138 231 3 58 6 6 . Cannon 154 | . . . . . . . . 3 102 26 23 . Launcher 55 | . . 20 . 2 5 9 8 . 10 1 . . Special 55 | . . . . . . . 1 52 2 . . . Kinetic 962 | . 112 18 . . 295 138 177 3 160 32 27 . Thermal 59 | . . . . . . . 54 3 . . 2 . Explosive 45 | . . 20 . 2 4 . 8 . 10 1 . . Electromagnetic 10 | . . . . . 1 9 . . . . . . Robot Hit Streak 38 | . 11 10 . . 32 21 24 17 19 9 38 . Robot Miss Streak 8 | . 4 4 . . 4 3 4 3 8 5 2 . Penetration Max 3 | . . . . . 1 1 . . 3 . . . Secondary Targets 4 | . . 1 . . . 1 2 . . . . . Max Gunslinging Chain 1 | . . 1 . . . 1 1 . . . . . Shots Hit Robots 835 | . 73 18 . . 220 96 174 53 148 22 31 . Core Hits 454 | . 30 27 . 6 89 54 67 2 134 22 23 . Critical Kills 7 | . . . . . 2 1 . . 4 . . . Critical Parts Destroyed 10 | . . . . . 1 1 3 . 5 . . . Critical Strikes 25 | . . . . . 3 2 7 . 13 . . . Burn 4 | . . . . . . . 4 . . . . . Destroy 17 | . . . . . 3 2 3 . 9 . . . Sever 4 | . . . . . . . . . 4 . . . Melee Attacks 56 | . . . . . 2 2 5 3 33 . 11 . Impact . | . . . . . . . . . . . . . Slashing 56 | . . . . . 2 2 5 3 33 . 11 . Piercing . | . . . . . . . . . . . . . Sneak Attacks 8 | . . . . . . . . . 3 . 5 . Combat Hostiles . | . . . . . . . . . . . . . Follow-up Attacks . | . . . . . . . . . . . . . Damage Inflicted 21908 | . 838 767 . 231 3993 2852 4143 280 7217 580 1007 . Guns 10682 | . 838 205 . . 3627 1741 3018 48 1001 83 121 . Cannons 2739 | . . . . . . . . 33 1965 311 430 . Explosions 6897 | . . 562 . 231 366 1111 964 . 3477 186 . . Melee 1558 | . . . . . . . 161 198 743 . 456 . Ramming 32 | . . . . . . . . 1 31 . . . Kinetic 12581 | . 838 205 . . 3627 1741 2230 48 2966 394 532 . Thermal 2763 | . . . . . . 52 788 33 1871 . 19 . Explosive 3876 | . . 562 . 231 327 . 964 . 1606 186 . . Electromagnetic 1098 | . . . . . 39 1059 . . . . . . Impact . | . . . . . . . . . . . . . Slashing 1558 | . . . . . . . 161 198 743 . 456 . Piercing . | . . . . . . . . . . . . . Highest Corruption 5 | . . . . . . . . 1 5 5 5 5 Average Corruption 3 | . . . . . . . . 1 3 5 5 5 Corruption Purged 3 | . . . . . . . . . 3 . . . Corruption Blocked . | . . . . . . . . . . . . . Effects 66 | . . . . . . . . 6 14 19 26 1 Message Errors 16 | . . . . . . . . 2 3 4 6 1 Matter Fused 16 | . . . . . . . . 2 1 7 6 . Heat Flow Errors 6 | . . . . . . . . . 2 2 2 . Energy Discharges 8 | . . . . . . . . . 1 3 4 . Data Loss (minor) 10 | . . . . . . . . 1 4 1 4 . Data Loss (major) 5 | . . . . . . . . 1 1 1 2 . Misfires 2 | . . . . . . . . . . 1 1 . Alerts 2 | . . . . . . . . . 1 . 1 . Weapon Failures 1 | . . . . . . . . . 1 . . . Overload Shots . | . . . . . . . . . . . . . Overflow Damage 718 | . . 10 . 1 5 25 62 24 411 . 180 . Projectiles 32 | . . . . . . . . 24 6 . 2 . Explosions 508 | . . 10 . 1 5 25 62 . 405 . . . Melee 178 | . . . . . . . . . . . 178 . Knockbacks 25 | . . . . . . . . . 22 3 . . Impact . | . . . . . . . . . . . . . Kinetic 24 | . . . . . . . . . 21 3 . . Secondary 1 | . . . . . . . . . 1 . . . Self-Inflicted Damage 401 | . . 94 . 26 55 10 45 . 171 . . . Shots 12 | . . 3 . 1 2 1 1 . 4 . . . Rammed 5 | . . . . . . . . 1 4 . . . Targets Rammed 6 | . . . . . . . . 1 5 . . . Kicked . | . . . . . . . . . . . . . Crushed 1 | . . . . . . . . . 1 . . . Highest Temperature 522 | . 18 . . . 149 95 415 72 522 319 253 . Average Temperature 65 | . 6 . . . 25 18 117 32 74 119 79 . Received Heat Transfer 2475 | . 189 . . . 693 171 603 45 660 18 96 . Effects 5 | . . . . . . . 2 . 3 . . . Shutdowns 1 | . . . . . . . 1 . . . . . Short Circuit 3 | . . . . . . . 1 . 2 . . . Damage (minor) 1 | . . . . . . . . . 1 . . . Siege Activations . | . . . . . . . . . . . . . Robots Corrupted 1 | . . . . . . 1 . . . . . . Combat Hostiles 1 | . . . . . . 1 . . . . . . Parts Fried 3 | . . . . . . 3 . . . . . . Impact Corruptions . | . . . . . . . . . . . . . Robots Melted . | . . . . . . . . . . . . . Combat Hostiles . | . . . . . . . . . . . . . Parts Melted 2 | . . . . . . . 1 . 1 . . . Heat Transferred 3202 | . . . . . . 50 1641 37 1400 . 74 . Parts Sabotaged . | . . . . . . . . . . . . . Parts Stolen . | . . . . . . . . . . . . . Parts Stripped . | . . . . . . . . . . . . . Power Chain Reactions 2 | . . . . . . 2 . . . . . . Missiles Intercepted . | . . . . . . . . . . . . . Alert | -11 -10 -10 -10 -9 -8 -8 -8 -8 -6 -6 -6 -6 ------- Run | Jun Mat Min Exi Min Mat Sto Gar Rec Fac Low Low Zio Peak Influence 2123 | . 298 236 . 101 481 747 2123 1023 991 . . . Initial 955 | . . 44 . . . 202 488 955 214 . . . Average 491 | . 140 127 . 9 238 492 1351 695 281 . . . Maximum Alert Level 5 | . 1 1 . . 2 3 5 3 3 . . . Low Security (%) 40 | 100 87 70 . 100 35 . . . 60 . . . Level 1 21 | . 12 29 . . 52 35 . 37 14 . . . Level 2 9 | . . . . . 12 47 14 3 5 . . . Level 3 14 | . . . . . . 17 14 59 19 . . . Level 4 5 | . . . . . . . 30 . . . . . Level 5 7 | . . . . . . . 39 . . . . . High Security . | . . . . . . . . . . . . . Max Security . | . . . . . . . . . . . . . Squads Dispatched 30 | . 3 . . . 12 4 . . 11 . . . Investigation 3 | . 1 . . . 2 . . . . . . . Extermination 5 | . . . . . . . . . 5 . . . Reinforcement 14 | . 2 . . . 5 2 . . 5 . . . Assault 4 | . . . . . 1 2 . . 1 . . . Garrison 4 | . . . . . 4 . . . . . . . Intercept . | . . . . . . . . . . . . . Searches Triggered . | . . . . . . . . . . . . . Construction Impeded 2 | . . . . . . 1 . . 1 . . . Haulers Reinforced 2 | . . . . . . . . . 2 . . . Active Scanning Responses . | . . . . . . . . . . . . . Cargo Convoy Interrupts 1 | . . . . . . . . . 1 . . . Stealth | -11 -10 -10 -10 -9 -8 -8 -8 -8 -6 -6 -6 -6 --------- Run | Jun Mat Min Exi Min Mat Sto Gar Rec Fac Low Low Zio Distress Signals 8 | . 1 . . . 3 3 . . 1 . . . Communications Jammed . | . . . . . . . . . . . . . Distress Signals . | . . . . . . . . . . . . . Times Spotted 244 | . 25 13 . 4 52 34 41 10 54 6 3 2 Peak Tracking Total 9 | . 5 3 . 4 5 7 5 3 9 3 1 2 Tactical Retreats 11 | . . . . . 4 1 2 . 4 . . . Traps | -11 -10 -10 -10 -9 -8 -8 -8 -8 -6 -6 -6 -6 ------- Run | Jun Mat Min Exi Min Mat Sto Gar Rec Fac Low Low Zio Traps Triggered 13 | . 1 . . . 1 2 8 . 1 . . . Indirectly . | . . . . . . . . . . . . . Trap Hack Attempts . | . . . . . . . . . . . . . Triggered . | . . . . . . . . . . . . . Disarmed . | . . . . . . . . . . . . . Reprogrammed . | . . . . . . . . . . . . . Reused . | . . . . . . . . . . . . . Traps Extracted . | . . . . . . . . . . . . . Installed 1 | . . . . . . . . . . . 1 . Triggered 1 | . . . . . . . . . . 1 . . Machines | -11 -10 -10 -10 -9 -8 -8 -8 -8 -6 -6 -6 -6 ---------- Run | Jun Mat Min Exi Min Mat Sto Gar Rec Fac Low Low Zio Machines Disabled 27 | . 1 1 . . 2 4 4 . 13 1 1 . Max in Single Turn 10 | . 1 1 . . 1 1 1 . 10 1 1 . Garrison Access 1 | . . . . . 1 . . . . . . . Garrison Relay 4 | . . . . . . . 4 . . . . . Machines Repaired . | . . . . . . . . . . . . . Machines Sabotaged . | . . . . . . . . . . . . . Overloaded Fab Kills . | . . . . . . . . . . . . . Hacking | -11 -10 -10 -10 -9 -8 -8 -8 -8 -6 -6 -6 -6 --------- Run | Jun Mat Min Exi Min Mat Sto Gar Rec Fac Low Low Zio Machines Accessed 45 | . 7 1 2 . 7 8 4 7 8 1 . . Terminals 30 | . 7 . . . 4 6 4 6 3 . . . Fabricators 2 | . . . . . . . . . 2 . . . Repair Stations 4 | . . . . . 1 1 . . 2 . . . Recycling Units 1 | . . . . . . . . 1 . . . . Scanalyzers 2 | . . . . . 1 . . . 1 . . . Garrison Access 2 | . . . . . 1 1 . . . . . . Total Hacks 124 | . 33 1 3 . 22 15 8 18 23 1 . . Successful 69 | . 22 1 3 . 13 8 2 6 13 1 . . Failed 55 | . 11 . . . 9 7 6 12 10 . . . Catastrophic 12 | . 1 . . . 1 . 2 4 4 . . . Database Lockouts . | . . . . . . . . . . . . . Manual 36 | . 20 . 1 . 6 . . 5 4 . . . Terminals 83 | . 33 . . . 10 10 8 15 7 . . . Fabricators 5 | . . . . . . . . . 5 . . . Repair Stations 7 | . . . . . 2 2 . . 3 . . . Recycling Units 3 | . . . . . . . . 3 . . . . Scanalyzers 15 | . . . . . 7 . . . 8 . . . Garrison Access 6 | . . . . . 3 3 . . . . . . Terminal Hacks 36 | . 17 1 3 . 3 5 2 3 1 1 . . Record 3 | . . . 2 . . . . . . 1 . . Part Schematic 2 | . 2 . . . . . . . . . . . Robot Analysis 4 | . 4 . . . . . . . . . . . Prototype ID Bank 1 | . 1 . . . . . . . . . . . Open Door 5 | . . 1 . . . 3 1 . . . . . Branch Access Points 2 | . 1 . . . 1 . . . . . . . Terminal Index 2 | . 1 . . . . . . . 1 . . . Alert Level 2 | . 2 . . . . . . . . . . . Unreport Threat 4 | . . . . . 1 1 . 2 . . . . Locate Traps 1 | . 1 . . . . . . . . . . . Dispatch Records 1 | . 1 . . . . . . . . . . . Hauler Manifests 4 | . 1 . . . 1 1 . 1 . . . . Registered Components 1 | . 1 . . . . . . . . . . . Zone Layout 2 | . 2 . . . . . . . . . . . Garrison Registry 1 | . . . . . . . 1 . . . . . EX-Prototype ID Bank 1 | . . . 1 . . . . . . . . . Fabricator Hacks 3 | . . . . . . . . . 3 . . . Load Schematic 2 | . . . . . . . . . 2 . . . Build 1 | . . . . . . . . . 1 . . . Repair Station Hacks 5 | . . . . . 2 2 . . 1 . . . Scan Component 3 | . . . . . 1 1 . . 1 . . . Repair 2 | . . . . . 1 1 . . . . . . Recycling Unit Hacks 1 | . . . . . . . . 1 . . . . Retrieve Components 1 | . . . . . . . . 1 . . . . Scanalyzer 14 | . . . . . 7 . . . 7 . . . Insert Component 7 | . . . . . 4 . . . 3 . . . Analyze 7 | . . . . . 3 . . . 4 . . . Garrison Access Hacks 1 | . . . . . . 1 . . . . . . Unlock Access 1 | . . . . . . 1 . . . . . . Unauthorized Hacks 9 | . 5 . . . 1 . . 2 1 . . . Terminals 9 | . 5 . . . 1 . . 2 1 . . . Botnet 9 | . 5 . . . 1 . . 2 1 . . . Fabricators . | . . . . . . . . . . . . . Repair Stations . | . . . . . . . . . . . . . Recycling Units . | . . . . . . . . . . . . . Scanalyzers . | . . . . . . . . . . . . . Garrison Access . | . . . . . . . . . . . . . Data Cores Recovered 1 | . . . . . . . . . 1 . . . Used . | . . . . . . . . . . . . . Hacking Detections 37 | . 7 . . . 7 6 3 7 7 . . . Full Trace Events 4 | . . . . . 1 . 1 2 . . . . Feedback Events . | . . . . . . . . . . . . . Feedback Blocked . | . . . . . . . . . . . . . Robot Schematics Acquired . | . . . . . . . . . . . . . Robots Built . | . . . . . . . . . . . . . Authchips . | . . . . . . . . . . . . . Time . | . . . . . . . . . . . . . Total Robot Build Rating . | . . . . . . . . . . . . . Part Schematics Acquired 8 | . 2 . . . 3 . . . 3 . . . Parts Built 1 | . . . . . . . . . 1 . . . Authchips 1 | . . . . . . . . . 1 . . . Time 84 | . . . . . . . . . 84 . . . Total Part Build Rating 4 | . . . . . . . . . 4 . . . Parts Repaired 2 | . . . . . 1 1 . . . . . . Time 79 | . . . . . 53 26 . . . . . . Parts Recycled . | . . . . . . . . . . . . . Recycled Matter . | . . . . . . . . . . . . . Retrieved Matter . | . . . . . . . . . . . . . Retrieved Components . | . . . . . . . . . . . . . Parts Scanalyzed 6 | . . . . . 3 . . . 3 . . . Part Schematics Acquired 6 | . . . . . 3 . . . 3 . . . Parts Damaged 1 | . . . . . 1 . . . . . . . Bothacking | -11 -10 -10 -10 -9 -8 -8 -8 -8 -6 -6 -6 -6 ------------ Run | Jun Mat Min Exi Min Mat Sto Gar Rec Fac Low Low Zio Used RIF Installer 1 | . . . . . . . 1 . . . . . Robots Hacked 5 | . . . . . . . . 4 1 . . . Non-combat 2 | . . . . . . . . 1 1 . . . Combat 3 | . . . . . . . . 3 . . . . Robot Hacks Applied 5 | . . . . . . . . 4 1 . . . parse_system 2 | . . . . . . . . 2 . . . . find_chute 1 | . . . . . . . . . 1 . . . ignore_parts 1 | . . . . . . . . 1 . . . . formatsys_high 1 | . . . . . . . . 1 . . . . Relay Couplers Released 18 | . . . . . 1 . 17 . . . . . Machine Destruction 18 | . . . . . 1 . 17 . . . . . Attached 1 | . . . . . . . . 1 . . . . Fabnet Peak Effective % . | . . . . . . . . . . . . . Robots Rewired 26 | . . . . . . . 3 22 1 . . . Allies Hacked 1 | . . . . . . . . . 1 . . . Hacks Repelled . | . . . . . . . . . . . . . Allies | -11 -10 -10 -10 -9 -8 -8 -8 -8 -6 -6 -6 -6 -------- Run | Jun Mat Min Exi Min Mat Sto Gar Rec Fac Low Low Zio Total Allies 43 | . . . . 4 . 10 5 23 1 . . . Largest Group 15 | . . . . 3 2 10 5 14 15 . . . Highest-Rated Group 261 | . . . . 40 32 173 122 229 261 . . . Highest-Rated Ally 34 | . . . . 31 16 29 25 34 34 . . . Total Orders 9 | . . . . . 2 4 . . 3 . . . STAY 5 | . . . . . 1 2 . . 2 . . . FOLLOW 4 | . . . . . 1 2 . . 1 . . . Ally Attacks 150 | . . . . 2 6 57 32 22 31 . . . Total Damage 3775 | . . . . 13 61 536 1170 466 1529 . . . Kills 42 | . . . . . . 9 9 9 15 . . . Allies Corrupted . | . . . . . . . . . . . . . Allies Melted . | . . . . . . . . . . . . . Intel | -11 -10 -10 -10 -9 -8 -8 -8 -8 -6 -6 -6 -6 ------- Run | Jun Mat Min Exi Min Mat Sto Gar Rec Fac Low Low Zio Robot Analysis Total 4 | . 4 . . . . . . . . . . . Derelict Logs Recovered 7 | . . 2 . 2 . . . . . 2 1 . Drone Launches . | . . . . . . . . . . . . . Drone Recoveries . | . . . . . . . . . . . . . Exploration | -11 -10 -10 -10 -9 -8 -8 -8 -8 -6 -6 -6 -6 ------------- Run | Jun Mat Min Exi Min Mat Sto Gar Rec Fac Low Low Zio Turns Passed 15138 | 57 1192 810 391 907 2339 753 2506 1272 3102 753 994 62 Spaces Moved 7995 | 36 748 657 312 611 1175 424 954 474 1265 559 732 48 Core 12 | 9 . . . . . . . . 3 . . . Treads 1809 | . . . . . 8 . 490 474 837 . . . Legs 1157 | 27 748 266 . . . . 116 . . . . . Wheels 5017 | . . 391 312 611 1167 424 348 . 425 559 732 48 Hover . | . . . . . . . . . . . . . Flight . | . . . . . . . . . . . . . Fastest Speed 50 | 50 120 95 95 140 105 115 115 242 100 125 125 125 Average Speed 154 | 110 120 106 123 140 135 115 211 242 199 125 125 130 Slowest Speed 1500 | 120 190 190 140 140 320 115 490 242 1500 125 155 155 Overloaded Moves . | . . . . . . . . . . . . . Propulsion Burnouts . | . . . . . . . . . . . . . Robots Hopped . | . . . . . . . . . . . . . Cave-ins Triggered . | . . . . . . . . . . . . . Exploration Rate (%) 65 | 3 96 96 71 98 71 66 89 96 26 62 76 6 Regions Visited 12 Branch Regions 8 Pre-discovered Areas 3 | . . 1 1 . . . . . . 1 . . Known Exits Taken 3 | . 1 . . . 1 1 . . . . . . Unknown Exits Taken 8 | 1 . 1 1 1 . . . 1 1 1 1 . Scrap Searched 8 | . . 1 . 2 . . . . . 4 1 . Spaces Dug 44 | . . 7 . 21 1 2 . . 10 . 3 . Terrain Destroyed 408 | . . 200 . 21 21 16 37 2 96 12 3 . Melee 16 | . . . . . 1 2 . . 10 . 3 . Projectile 13 | . . . . . 4 4 . 2 1 2 . . AOE 378 | . . 200 . 21 16 10 37 . 84 10 . . Terrain Rammed . | . . . . . . . . . . . . . Walls Destroyed . | . . . . . . . . . . . . . Machines Disabled . | . . . . . . . . . . . . . Actions | -11 -10 -10 -10 -9 -8 -8 -8 -8 -6 -6 -6 -6 --------- Run | Jun Mat Min Exi Min Mat Sto Gar Rec Fac Low Low Zio Total 9929 | 50 948 733 315 660 1726 596 1278 578 1640 589 768 48 Wait 834 | 5 99 24 . 43 327 60 86 17 160 8 5 . Move 7984 | 35 747 656 311 610 1174 424 953 473 1264 558 731 48 Hop . | . . . . . . . . . . . . . Pick Up 84 | 4 13 4 1 3 21 6 9 4 16 2 1 . Fast Attach 78 | 6 7 5 . . 22 5 13 . 16 3 1 . Attach 28 | . 2 . . . 5 1 8 . 12 . . . Detach 26 | . 2 3 . . 4 . 5 . 12 . . . Swap 92 | . 5 4 3 2 22 16 14 7 9 3 7 . Drop 126 | . 17 6 . . 46 14 18 6 16 2 1 . Fire 543 | . 56 31 . 2 103 60 116 55 97 13 10 . Melee 56 | . . . . . 2 2 5 3 33 . 11 . Ram . | . . . . . . . . . . . . . Kick . | . . . . . . . . . . . . . Crush 6 | . . . . . . . . 1 5 . . . Escape Stasis 48 | . . . . . . 8 40 . . . . . Rewire 23 | . . . . . . . 11 12 . . . . Trap 1 | . . . . . . . . . . . 1 . Miscellaneous . | . . . . . . . . . . . . . Route ------- -11/Junkyard -10/Materials (discovered 4 exits: *Mat x3 / *Min) -10/Mines (discovered 3 exits: *Mat x2 / *Exi) -10/Exiles -9/Mines (discovered 2 exits: *Mat x2) -8/Materials (discovered 3 exits: *Fac x2 / *Sto) -8/Storage -8/Garrison (discovered 3 exits: *Rec x3) -8/Recycling -6/Factory -6/Lower Caves -6/Lower Caves (discovered 2 exits: [*Fac] / [*Zio]) -6/Zion History --------- Turn | Location | Event 13 | -11/Junkyard | Discovered new exit (range 14) 58 | -11/Junkyard | Entered Materials 274 | -10/Materials | Discovered new exit (range 5) 303 | -10/Materials | Build established: Mutant 477 | -10/Materials | Discovered new exit (range 7) 580 | -10/Materials | Discovered new exit (range 15) 952 | -10/Materials | Discovered new exit (range 16) 986 | -10/Materials | Identified exit to Mines 1250 | -10/Materials | Entered Mines 1256 | -10/Mines | Assembled infested the area 1277 | -10/Mines | Core integrity fell below 50% 1334 | -10/Mines | Received a Rocket Launcher from a helpful Derelict 1599 | -10/Mines | Discovered new exit (range 8) 1614 | -10/Mines | Found the Drone Emporium 1627 | -10/Mines | Found Prototype Device 1668 | -10/Mines | Identified exit to Materials 1787 | -10/Mines | Met a Derelict testing a Signal Generator 1792 | -10/Mines | Found Signal Generator 1985 | -10/Mines | Deemed a non-threat by the Exiles lab entrance 1985 | -10/Mines | Discovered new exit (range 5) 2060 | -10/Mines | Entered Exiles 2084 | -10/Exiles | Met 8R-AWN 2099 | -10/Exiles | Met EX-HEX 2128 | -10/Exiles | Met EX-BIN 2141 | -10/Exiles | Aligned with FarCom system 2142 | -10/Exiles | Given EX-Vault access code 2164 | -10/Exiles | Opened EX-Vault 2175 | -10/Exiles | Found XL Autogun Array 2204 | -10/Exiles | Warned to stay clear of 0b10 Research branches 2318 | -10/Exiles | Met EX-DEC 2357 | -10/Exiles | Learned location of Zion (-6) 2438 | -10/Exiles | Discovered new exit (range 11) 2451 | -10/Exiles | Left Exiles lab with XL Autogun Array 2451 | -10/Exiles | Entered Mines 2454 | -9/Mines | Received a Mining Laser from a helpful Derelict 2496 | -9/Mines | Met a Derelict bent on vengeance 2590 | -9/Mines | Found a damaged Exp. Sensor Array with a note attached 2592 | -9/Mines | Found Prototype Device 2640 | -9/Mines | Learned Materials interactive machine intel 2651 | -9/Mines | Discovered new exit (range 9) 2934 | -9/Mines | Learned 2 Materials zone layouts 3034 | -9/Mines | Discovered new exit (range 5) 3062 | -9/Mines | Joined a pair of Derelicts in attacking an 0b10 outpost 3114 | -9/Mines | Assisted by bots powering up and referring to "LRC-V3" 3167 | -9/Mines | Core integrity fell below 20% 3358 | -9/Mines | Entered Materials 3358 | -8/Materials | Accompanied by 2 allies 3358 | -8/Materials | Evolved 4 slots: Propulsion x2, Utility x1, Weapon x1 3359 | -8/Materials | Identified exit to Factory 3360 | -8/Materials | Loaded intel: 19 interactive machine locations 3495 | -8/Materials | Garrison activated, responded to threat 3820 | -8/Materials | Build established: Scavenger-Skirmisher 3942 | -8/Materials | Garrison activated, responded to threat 4299 | -8/Materials | Identified exit to Storage 4482 | -8/Materials | Discovered exit to Factory (range 7) 5488 | -8/Materials | Repaired Broken Missile Launcher 5697 | -8/Materials | Entered Storage 5823 | -8/Storage | Assisted by bots powering up and referring to "LRC-V3" 6097 | -8/Storage | First assault squad dispatched 6132 | -8/Storage | Repaired Seismic Detector? 6139 | -8/Storage | Build established: Commander-Skirmisher 6450 | -8/Storage | Identified exit to Garrison 6450 | -8/Storage | Entered Garrison 6458 | -8/Garrison | Triggered checkpoint 6601 | -8/Garrison | Core integrity fell below 50% 6657 | -8/Garrison | Garrison Relay disabled 6956 | -8/Garrison | Discovered new exit (range 9) 7009 | -8/Garrison | Discovered new exit (range 73) 7009 | -8/Garrison | Discovered new exit (range 45) 7009 | -8/Garrison | Discovered new exit (range 14) 7030 | -8/Garrison | Triggered checkpoint 7056 | -8/Garrison | Garrison Relay disabled 7171 | -8/Garrison | Destroyed 7 combat bots 7260 | -8/Garrison | Triggered checkpoint 7324 | -8/Garrison | Installed Relay Interface Framework 7418 | -8/Garrison | Triggered checkpoint 7587 | -8/Garrison | Rescued a captive Derelict 7602 | -8/Garrison | Rescued a captive Derelict 7710 | -8/Garrison | Garrison Relay disabled 7741 | -8/Garrison | Build established: Scavenger-Mutant 7896 | -8/Garrison | Triggered checkpoint 8095 | -8/Garrison | Spotted B-75 Beast 8106 | -8/Garrison | Destroyed B-75 Beast 8402 | -8/Garrison | Triggered checkpoint 8576 | -8/Garrison | Garrison Relay disabled 8956 | -8/Garrison | Entered Recycling 8956 | -8/Recycling | Accompanied by 1 ally 9054 | -8/Recycling | Found Scrap Engine 9276 | -8/Recycling | Build established: Commander-Mutant 9763 | -8/Recycling | Discovered new exit (range 15) 10228 | -8/Recycling | Entered Factory 10228 | -6/Factory | Accompanied by 14 allies 10228 | -6/Factory | Evolved 4 slots: Utility x3, Weapon x1 10448 | -6/Factory | Found Prototype Launcher 10448 | -6/Factory | Identified Scatter Rocket Array 11405 | -6/Factory | P-60 Hacker assimilated allied Grenadier 3a 11717 | -6/Factory | Build established: Scavenger-Mutant 12283 | -6/Factory | Cargo convoy interrupted 12592 | -6/Factory | Lost 7 parts (1p4n2w) 12611 | -6/Factory | Destroyed 8 combat bots 12625 | -6/Factory | Core integrity fell below 50% 12675 | -6/Factory | Lost 5 parts (2n1u2w) 12678 | -6/Factory | First assault squad dispatched 12780 | -6/Factory | Core integrity fell below 20% 13106 | -6/Factory | Fabricated Hrd. Heavy Armor Plating (x1) 13219 | -6/Factory | Discovered new exit (range 15) 13330 | -6/Factory | Entered Lower Caves 13376 | -6/Lower Caves | Attracted the attention of an 0b10 checkpoint 13472 | -6/Lower Caves | Encountered a Warlord checkpoint 13571 | -6/Lower Caves | Build established: Gunner 13695 | -6/Lower Caves | Learned location of 1 exit from Factory 13775 | -6/Lower Caves | Found Alien Artifact 13775 | -6/Lower Caves | Identified Dimensional Node Initializer 13775 | -6/Lower Caves | Initialized slip node 13888 | -6/Lower Caves | Discovered new exit (range 6) 14083 | -6/Lower Caves | Entered another Lower Caves area 14108 | -6/Lower Caves | Discovered new exit (range 9) 14116 | -6/Lower Caves | Learned Factory security intel 14331 | -6/Lower Caves | Attacked by a delusional Derelict stockpiling parts 15070 | -6/Lower Caves | Discovered new exit (range 6) 15077 | -6/Lower Caves | Entered Zion 15116 | -6/Zion | System corruption cleaned by Quarantine Array 15121 | -6/Zion | RIF detected upon attempting to enter Zion 15121 | -6/Zion | Attacked by Zionites 15121 | -6/Zion | Spotted QZ-926(B) 15121 | -6/Zion | Spotted V4-2BE(B) 15139 | -6/Zion | Destroyed by QZ-926(B) with Slug Cannon Last Messages --------------- 14862_ Acquired 4 matter. 14868_ Installed Dirty Bomb Trap. 14883_ Acquired 2 matter. 14893_ Acquired 5 matter. 14895_ Acquired 3 matter. 14902_ System corrupted: Component data lost. 14944_ >WP>GVFMGV8K=OP4RDBK92RJW%BEK6EBK 14965_ System corrupted: Substantial component data lost. 15044_ System corrupted: Heat flow error (+295). 15070_ EXIT=FOUND 15073_ Penetrated by Slug. 15077_ System corrupted: Energy discharge (-91). LOCATION=UNKNOWN GOAL=ESCAPE 15092_ S3KCT ,PZE2V0UAXK515ZYTT9VOHMBI 15116_ System quarantine in progress... 15116_ PUBLIC SERVICE ANNOUNCEMENT: Quarantine Array scanned 1 system, cleaned 1. 15121_ PUBLIC SERVICE ANNOUNCEMENT: 0b10 RIF detected in Zion! Defend our home! 15121_ System Quarantine Field Array disabled. 15126_ Wheel destroyed. Map ----- +----------------------------------------------------+ | ?????????????????????????????????????????????????? | | ?????????????????????????????????????????????????? | | ?????????????????????????????????????????????????? | | ?????????????????????????????????????????????????? | | ?????????????????????????????????????????????????? | | ?????????????????????????????????????????????????? | | ?????????????????????????????????????????????????? | | ?????????????????????????????????????????????????? | | ?????????????????????????????????????????????????? | | ?????????????????????????????????????????????????? | | ?????????????????????????????????????????????????? | | ?????????????????????????????????????????????????? | | ?????????????????????????????????????????????????? | | ?????????????????????????????????????????????????? | | ????????????????????????????###???? ##???????????? | | ???????????????????????????# ???? ???????????? | | ??????????????????????????? ?#? ??????????? | | ??????????????????????????? ## #??????????? | | ?????####?????????????????? # #??????????? | | ?????# "############?????? # ???????????? | | ?????# """"""""""""#?????? ?????????????? | | ???### """" """"#?????? #???????????????? | | ???# ####### #????????????????? | | ##???????????????? | | #???????????????? | | ""# """# @ #???????????????? | | ???### "" """""""### ### ##???????????????? | | ?????# """""""""""### %#????#????????????????? | | ?????# "############# #?????????????????????? | | ?????####????????????# #?????????????????????? | | ?????????????????????## #?????????????????????? | | ??????????????????????## ##????????????????????? | | ???????????????????????## ##???????????????????? | | ????????????????????????# #???????????????????? | | ????????????????????????# ##???????????????????? | | ????????????????????????# #????????????????????? | | ????????????????????????## #????????????????????? | | ?????????????????????????# #????????????????????? | | ?????????????????????????# #????????????????????? | | ?????????????????????????# #????????????????????? | | ????????????????????????## ##???????????????????? | | ????????????????????????# #???????????????????? | | ????????????????????????# #???????????????????? | | ????????????????????????## ##???????????????????? | | ???????????????????????## #???????????????????? | | ???????????????????????# ##???????????????????? | | ???????????????????????## #???????????????????? | | ???????????????????????# #???????????????????? | | ???????????????????????# ##???????????????????? | | ???????????????????????## ##????????????????????? | +----------------------------------------------------+ Best States ------------- Heat Dissipation 53 Energy Generation 23 Energy Capacity 315 Matter Stores 300 Matter Capacity 300 Sight Range 16 Robot Scan Range 14 Terrain Scan Density 10 Armor Coverage 600 Evasion (%) 55 Targeting Accuracy 16 Recoil Reduction 4 Relay Coupler Types 1 Relay Coupler Value 22 Authchip Count 2 Item Schematics ----------------- Hcp. Storage Unit | -10/Materials | Hacked Huge Storage Unit | -10/Materials | Hacked Hrd. Heavy Armor Plating | -8/Materials | Scanalyzed Hcp. Matter Pod | -8/Materials | Scanalyzed Missile Launcher | -8/Materials | Scanalyzed Lrn. Tractor Beam | -6/Factory | Scanalyzed Arm. Wheel | -6/Factory | Scanalyzed Matter Compressor | -6/Factory | Scanalyzed Robot Schematics ------------------ None Fabricated ------------ Hrd. Heavy Armor Plating | x1 | -6/Factory | Authchip Alien Tech Used ----------------- Dimensional Node Initializer Achievements -------------- None Challenges ------------ None Game ------ Seed MyomerStasisAccelerator Manual? 0 Play Time 02:23:28 Cumulative 192.5 hours Start 2023.04.16 @ 12:52:57 End 2023.04.16 @ 21:43:28 Sessions 3 Manual Loads 0 Difficulty Rogue Special Mode None Game No. 97 Rogue 97 Adventurer 0 Explorer 0 Win Type - Total 2 Types 2/0/0/0/0/0/0/0/0 Lore% 55 Gallery% 68 Achievement% 55 Wizard Run 0 Options --------- ASCII 0 Keyboard 1 Movement Vi Keybinds 0 Fullscreen 1 Font 12/Smallcaps Map View 83x54 Tactical HUD 1 Map Filters NONE Filters NONE Steam 1 RUN: 3bc4eff2-da7d-4e93-9a66-b72d3607fe53